[Event "Titled Tuesday Blitz October 31 Late 2023"]
[White "Rose, Felix"]
[Black "Santos Flores, Alberto"]
[WhiteFideId "5105722"]
[BlackFideId "3601234"]
[WhiteElo "2352"]
[BlackElo "2492"]
[Result "0-1"]
[Round "8"]
[TimeControl "180+1"]
[Date "2023.10.31"]
[WhiteClock "0:00:52"]
[BlackClock "0:02:31"]
[Board "84"]

1. e4 {[%clk 0:03:00]}  e6 {[%clk 0:02:59]} 2. d4 {[%clk 0:02:59]}  d5 {[%clk 0:02:59]} 3. Nc3 {[%clk 0:02:59]}  Nf6 {[%clk 0:02:59]} 4. e5 {[%clk 0:02:59]}  Nfd7 {[%clk 0:02:59]} 5. f4 {[%clk 0:03:00]}  c5 {[%clk 0:02:59]} 6. Nf3 {[%clk 0:03:00]}  Nc6 {[%clk 0:02:59]} 7. Be3 {[%clk 0:03:01]}  Qb6 {[%clk 0:02:59]} 8. Na4 {[%clk 0:03:00]}  Qa5+ {[%clk 0:02:58]} 9. c3 {[%clk 0:03:00]}  b6 {[%clk 0:02:59]} 10. h4 {[%clk 0:02:40]}  Ba6 {[%clk 0:02:58]} 11. Bxa6 {[%clk 0:02:37]}  Qxa6 {[%clk 0:02:58]} 12. h5 {[%clk 0:02:33]}  Be7 {[%clk 0:02:53]} 13. g4 {[%clk 0:02:31]}  Rc8 {[%clk 0:02:49]} 14. h6 {[%clk 0:02:26]}  g6 {[%clk 0:02:48]} 15. b3 {[%clk 0:02:00]}  cxd4 {[%clk 0:02:46]} 16. cxd4 {[%clk 0:02:01]}  Nb4 {[%clk 0:02:46]} 17. Rh2 {[%clk 0:01:47]}  Nd3+ {[%clk 0:02:32]} 18. Kd2 {[%clk 0:00:52]}  Bb4+ {[%clk 0:02:31]} 0-1


[Site "https://www.chess.com"]

[Event "Titled Tuesday Blitz October 31 Late 2023"]
[White "Molenda, Marcin"]
[Black "Bogaudinov, Rushan"]
[WhiteFideId "1173065"]
[BlackFideId "4129288"]
[WhiteElo "2488"]
[BlackElo "2367"]
[Result "1-0"]
[Round "8"]
[TimeControl "180+1"]
[Date "2023.10.31"]
[WhiteClock "0:00:46"]
[BlackClock "0:00:00"]
[Board "85"]

1. e4 {[%clk 0:02:59]}  e5 {[%clk 0:02:13]} 2. Nf3 {[%clk 0:02:58]}  Nc6 {[%clk 0:02:13]} 3. Bb5 {[%clk 0:02:58]}  a6 {[%clk 0:02:12]} 4. Ba4 {[%clk 0:02:58]}  d6 {[%clk 0:02:12]} 5. c4 {[%clk 0:02:58]}  Bd7 {[%clk 0:02:10]} 6. Nc3 {[%clk 0:02:56]}  Nf6 {[%clk 0:02:09]} 7. O-O {[%clk 0:02:56]}  g6 {[%clk 0:02:08]} 8. Bxc6 {[%clk 0:02:54]}  bxc6 {[%clk 0:02:07]} 9. d4 {[%clk 0:02:55]}  exd4 {[%clk 0:02:07]} 10. Nxd4 {[%clk 0:02:55]}  Bg7 {[%clk 0:02:06]} 11. Bf4 {[%clk 0:02:55]}  O-O {[%clk 0:02:05]} 12. Re1 {[%clk 0:02:50]}  Re8 {[%clk 0:02:04]} 13. h3 {[%clk 0:02:46]}  Rb8 {[%clk 0:02:04]} 14. b3 {[%clk 0:02:46]}  c5 {[%clk 0:01:53]} 15. Nc2 {[%clk 0:02:43]}  a5 {[%clk 0:01:53]} 16. Qd2 {[%clk 0:02:42]}  a4 {[%clk 0:01:51]} 17. bxa4 {[%clk 0:02:34]}  Ra8 {[%clk 0:01:51]} 18. e5 {[%clk 0:02:30]}  Nh5 {[%clk 0:01:51]} 19. Bh2 {[%clk 0:02:26]}  dxe5 {[%clk 0:01:35]} 20. Rad1 {[%clk 0:02:17]}  Be6 {[%clk 0:01:16]} 21. Qxd8 {[%clk 0:02:11]}  Rexd8 {[%clk 0:01:17]} 22. Rxd8+ {[%clk 0:02:11]}  Rxd8 {[%clk 0:01:18]} 23. Bxe5 {[%clk 0:02:11]}  Rd2 {[%clk 0:01:10]} 24. Bxg7 {[%clk 0:02:05]}  Kxg7 {[%clk 0:00:59]} 25. Ne3 {[%clk 0:01:55]}  Nf4 {[%clk 0:00:53]} 26. a5 {[%clk 0:01:55]}  Bc8 {[%clk 0:00:46]} 27. Rd1 {[%clk 0:01:34]}  Rb2 {[%clk 0:00:36]} 28. Rd8 {[%clk 0:01:34]}  Ba6 {[%clk 0:00:22]} 29. Ra8 {[%clk 0:01:33]}  Bb7 {[%clk 0:00:22]} 30. Rb8 {[%clk 0:01:33]}  Rb4 {[%clk 0:00:18]} 31. Ned5 {[%clk 0:01:17]}  Nxd5 {[%clk 0:00:15]} 32. Nxd5 {[%clk 0:01:17]}  Ra4 {[%clk 0:00:02]} 33. Rxb7 {[%clk 0:01:16]}  c6 {[%clk 0:00:02]} 34. Ne7 {[%clk 0:01:08]}  Rxa5 {[%clk 0:00:02]} 35. Nxc6 {[%clk 0:01:08]}  Rxa2 {[%clk 0:00:02]} 36. Ne5 {[%clk 0:01:09]}  Kf6 {[%clk 0:00:03]} 37. Nxf7 {[%clk 0:01:09]}  Ra1+ {[%clk 0:00:03]} 38. Kh2 {[%clk 0:01:08]}  Rc1 {[%clk 0:00:04]} 39. Nd6 {[%clk 0:01:06]}  Ke5 {[%clk 0:00:04]} 40. Rb6 {[%clk 0:00:50]}  h5 {[%clk 0:00:04]} 41. h4 {[%clk 0:00:50]}  Rc2 {[%clk 0:00:04]} 42. Kg3 {[%clk 0:00:50]}  Kd4 {[%clk 0:00:00]} 43. Nb5+ {[%clk 0:00:46]} 1-0


[Site "https://www.chess.com"]

[Event "Titled Tuesday Blitz October 31 Late 2023"]
[White "Cervantes Landeiro, Thalia"]
[Black "Szente Varga, Fruzsina"]
[WhiteFideId "3520498"]
[BlackFideId "712264"]
[WhiteElo "2486"]
[BlackElo "2320"]
[Result "0-1"]
[Round "8"]
[TimeControl "180+1"]
[Date "2023.10.31"]
[WhiteClock "0:00:54"]
[BlackClock "0:01:51"]
[Board "86"]

1. d4 {[%clk 0:03:00]}  Nf6 {[%clk 0:02:59]} 2. c4 {[%clk 0:03:01]}  g6 {[%clk 0:02:59]} 3. Nc3 {[%clk 0:03:01]}  Bg7 {[%clk 0:02:59]} 4. e4 {[%clk 0:03:01]}  d6 {[%clk 0:03:00]} 5. f4 {[%clk 0:03:02]}  O-O {[%clk 0:03:00]} 6. Nf3 {[%clk 0:03:03]}  c5 {[%clk 0:03:00]} 7. d5 {[%clk 0:03:03]}  e6 {[%clk 0:03:00]} 8. dxe6 {[%clk 0:03:04]}  fxe6 {[%clk 0:02:58]} 9. Bd3 {[%clk 0:03:04]}  Nc6 {[%clk 0:02:58]} 10. O-O {[%clk 0:03:05]}  d5 {[%clk 0:02:57]} 11. cxd5 {[%clk 0:03:04]}  exd5 {[%clk 0:02:57]} 12. Nxd5 {[%clk 0:03:05]}  Nxd5 {[%clk 0:02:54]} 13. Bc4 {[%clk 0:03:05]}  Ne7 {[%clk 0:02:52]} 14. exd5 {[%clk 0:03:02]}  Qd6 {[%clk 0:02:50]} 15. Be3 {[%clk 0:02:49]}  Bg4 {[%clk 0:02:49]} 16. h3 {[%clk 0:02:44]}  Bxf3 {[%clk 0:02:45]} 17. Qxf3 {[%clk 0:02:45]}  Nf5 {[%clk 0:02:46]} 18. Bf2 {[%clk 0:02:41]}  a6 {[%clk 0:02:41]} 19. a4 {[%clk 0:02:30]}  Nd4 {[%clk 0:02:28]} 20. Qd3 {[%clk 0:02:28]}  Qxf4 {[%clk 0:02:13]} 21. Bg3 {[%clk 0:01:59]}  Ne2+ {[%clk 0:02:07]} 22. Qxe2 {[%clk 0:01:52]}  Qxg3 {[%clk 0:02:07]} 23. d6+ {[%clk 0:01:52]}  Kh8 {[%clk 0:02:07]} 24. d7 {[%clk 0:01:50]}  Bd4+ {[%clk 0:02:03]} 25. Kh1 {[%clk 0:01:46]}  Be5 {[%clk 0:02:03]} 26. Rxf8+ {[%clk 0:01:26]}  Rxf8 {[%clk 0:02:02]} 27. Qxe5+ {[%clk 0:01:07]}  Qxe5 {[%clk 0:02:03]} 28. Rd1 {[%clk 0:01:07]}  Rd8 {[%clk 0:02:01]} 29. Bf7 {[%clk 0:00:58]}  Qe2 {[%clk 0:01:51]} 30. Rd5 {[%clk 0:00:54]}  Qf1+ {[%clk 0:01:51]} 0-1


[Site "https://www.chess.com"]

[Event "Titled Tuesday Blitz October 31 Late 2023"]
[White "Fominykh, Maria"]
[Black "Czerw, Dawid"]
[WhiteFideId "4142411"]
[BlackFideId "1145746"]
[WhiteElo "2318"]
[BlackElo "2480"]
[Result "0-1"]
[Round "8"]
[TimeControl "180+1"]
[Date "2023.10.31"]
[WhiteClock "0:00:00"]
[BlackClock "0:00:05"]
[Board "88"]

1. d4 {[%clk 0:03:00]}  d5 {[%clk 0:02:59]} 2. c4 {[%clk 0:03:00]}  c6 {[%clk 0:03:00]} 3. Nc3 {[%clk 0:03:01]}  Nf6 {[%clk 0:03:00]} 4. Nf3 {[%clk 0:03:01]}  a6 {[%clk 0:03:01]} 5. cxd5 {[%clk 0:03:01]}  cxd5 {[%clk 0:03:02]} 6. Bf4 {[%clk 0:03:00]}  Nc6 {[%clk 0:03:02]} 7. e3 {[%clk 0:03:00]}  Bg4 {[%clk 0:03:02]} 8. Be2 {[%clk 0:02:59]}  e6 {[%clk 0:03:01]} 9. O-O {[%clk 0:02:59]}  Bxf3 {[%clk 0:03:01]} 10. Bxf3 {[%clk 0:02:59]}  Bd6 {[%clk 0:03:01]} 11. Bxd6 {[%clk 0:02:52]}  Qxd6 {[%clk 0:03:02]} 12. Na4 {[%clk 0:02:52]}  O-O {[%clk 0:03:00]} 13. Qb3 {[%clk 0:02:33]}  b5 {[%clk 0:02:50]} 14. Nc5 {[%clk 0:02:32]}  Nd7 {[%clk 0:02:42]} 15. Rfc1 {[%clk 0:02:28]}  Rfc8 {[%clk 0:02:38]} 16. a4 {[%clk 0:02:19]}  b4 {[%clk 0:02:31]} 17. a5 {[%clk 0:02:07]}  Nxc5 {[%clk 0:02:14]} 18. Rxc5 {[%clk 0:02:08]}  f5 {[%clk 0:01:28]} 19. Rac1 {[%clk 0:02:00]}  Ne7 {[%clk 0:01:13]} 20. Qxb4 {[%clk 0:01:53]}  Rcb8 {[%clk 0:01:10]} 21. Qa3 {[%clk 0:01:40]}  Kf7 {[%clk 0:00:58]} 22. g3 {[%clk 0:01:38]}  Rb7 {[%clk 0:00:56]} 23. Be2 {[%clk 0:01:16]}  Rab8 {[%clk 0:00:56]} 24. R1c2 {[%clk 0:01:13]}  g5 {[%clk 0:00:54]} 25. Kg2 {[%clk 0:00:45]}  f4 {[%clk 0:00:53]} 26. Rc7 {[%clk 0:00:18]}  Qxa3 {[%clk 0:00:31]} 27. bxa3 {[%clk 0:00:19]}  fxe3 {[%clk 0:00:27]} 28. fxe3 {[%clk 0:00:17]}  Rxc7 {[%clk 0:00:24]} 29. Rxc7 {[%clk 0:00:16]}  Kf6 {[%clk 0:00:25]} 30. Bxa6 {[%clk 0:00:11]}  Ra8 {[%clk 0:00:25]} 31. Bb5 {[%clk 0:00:09]}  Rxa5 {[%clk 0:00:20]} 32. a4 {[%clk 0:00:09]}  Nf5 {[%clk 0:00:18]} 33. Kf2 {[%clk 0:00:09]}  Nd6 {[%clk 0:00:18]} 34. Rc6 {[%clk 0:00:03]}  Nxb5 {[%clk 0:00:14]} 35. axb5 {[%clk 0:00:03]}  Rxb5 {[%clk 0:00:14]} 36. Kf3 {[%clk 0:00:03]}  h5 {[%clk 0:00:14]} 37. h3 {[%clk 0:00:03]}  Rb1 {[%clk 0:00:08]} 38. Rc8 {[%clk 0:00:02]}  Rf1+ {[%clk 0:00:05]} 39. Kg2 {[%clk 0:00:02]}  Re1 {[%clk 0:00:05]} 40. Kf2 {[%clk 0:00:02]}  Rh1 {[%clk 0:00:05]} 41. Kg2 {[%clk 0:00:02]}  Rd1 {[%clk 0:00:05]} 42. Kf2 {[%clk 0:00:00]}  Kf5 {[%clk 0:00:05]} 0-1


[Site "https://www.chess.com"]

[Event "Titled Tuesday Blitz October 31 Late 2023"]
[White "Bilan, Danila"]
[Black "Slavin, Alexey"]
[WhiteFideId "24161918"]
[BlackFideId "24104388"]
[WhiteElo "2466"]
[BlackElo "2271"]
[Result "1/2-1/2"]
[Round "8"]
[TimeControl "180+1"]
[Date "2023.10.31"]
[WhiteClock "0:00:04"]
[BlackClock "0:00:04"]
[Board "90"]

1. d4 {[%clk 0:03:00]}  Nc6 {[%clk 0:02:58]} 2. d5 {[%clk 0:02:54]}  Ne5 {[%clk 0:02:58]} 3. e4 {[%clk 0:02:45]}  Ng6 {[%clk 0:02:56]} 4. Nf3 {[%clk 0:02:43]}  e5 {[%clk 0:02:55]} 5. h4 {[%clk 0:02:41]}  h5 {[%clk 0:02:47]} 6. g3 {[%clk 0:02:40]}  Bc5 {[%clk 0:02:45]} 7. Be2 {[%clk 0:02:29]}  d6 {[%clk 0:02:45]} 8. Nbd2 {[%clk 0:02:24]}  a6 {[%clk 0:02:44]} 9. Ng5 {[%clk 0:02:09]}  Nf6 {[%clk 0:02:43]} 10. Nc4 {[%clk 0:02:03]}  Ng4 {[%clk 0:02:36]} 11. Ne3 {[%clk 0:01:58]}  Bxe3 {[%clk 0:02:21]} 12. Bxe3 {[%clk 0:01:58]}  Qe7 {[%clk 0:02:00]} 13. c4 {[%clk 0:01:45]}  Bd7 {[%clk 0:02:00]} 14. b4 {[%clk 0:01:41]}  Nf8 {[%clk 0:01:53]} 15. Rc1 {[%clk 0:01:34]}  g6 {[%clk 0:01:53]} 16. Qd2 {[%clk 0:01:20]}  f6 {[%clk 0:01:38]} 17. Nh3 {[%clk 0:01:17]}  Nxe3 {[%clk 0:01:37]} 18. Qxe3 {[%clk 0:01:14]}  Bxh3 {[%clk 0:01:35]} 19. Rxh3 {[%clk 0:01:15]}  Nd7 {[%clk 0:01:36]} 20. c5 {[%clk 0:01:14]}  O-O {[%clk 0:01:32]} 21. g4 {[%clk 0:01:11]}  hxg4 {[%clk 0:01:28]} 22. Bxg4 {[%clk 0:01:11]}  f5 {[%clk 0:01:28]} 23. exf5 {[%clk 0:01:00]}  gxf5 {[%clk 0:01:29]} 24. Bh5 {[%clk 0:00:49]}  Nf6 {[%clk 0:01:27]} 25. Rg3+ {[%clk 0:00:46]}  Kh8 {[%clk 0:01:22]} 26. Qg5 {[%clk 0:00:34]}  f4 {[%clk 0:01:11]} 27. Rg2 {[%clk 0:00:27]}  Nxd5 {[%clk 0:01:03]} 28. Qxe7 {[%clk 0:00:13]}  Nxe7 {[%clk 0:01:03]} 29. cxd6 {[%clk 0:00:13]}  cxd6 {[%clk 0:01:03]} 30. Rc7 {[%clk 0:00:14]}  Rf5 {[%clk 0:00:38]} 31. Bf3 {[%clk 0:00:07]}  Rf7 {[%clk 0:00:28]} 32. Rxb7 {[%clk 0:00:05]}  Rc8 {[%clk 0:00:24]} 33. Kd2 {[%clk 0:00:04]}  d5 {[%clk 0:00:23]} 34. Bxd5 {[%clk 0:00:03]}  Rd8 {[%clk 0:00:24]} 35. Ke2 {[%clk 0:00:02]}  Rxd5 {[%clk 0:00:24]} 36. h5 {[%clk 0:00:01]}  e4 {[%clk 0:00:24]} 37. Rg1 {[%clk 0:00:01]}  Kh7 {[%clk 0:00:22]} 38. Ke1 {[%clk 0:00:01]}  Rxh5 {[%clk 0:00:22]} 39. Rb6 {[%clk 0:00:01]}  Rh6 {[%clk 0:00:21]} 40. Rb7 {[%clk 0:00:01]}  Rhf6 {[%clk 0:00:20]} 41. Rg5 {[%clk 0:00:01]}  Ng6 {[%clk 0:00:18]} 42. Rxf7+ {[%clk 0:00:01]}  Rxf7 {[%clk 0:00:18]} 43. Ra5 {[%clk 0:00:02]}  Rf6 {[%clk 0:00:18]} 44. a4 {[%clk 0:00:02]}  Rb6 {[%clk 0:00:18]} 45. Rh5+ {[%clk 0:00:03]}  Kg7 {[%clk 0:00:18]} 46. b5 {[%clk 0:00:03]}  axb5 {[%clk 0:00:18]} 47. axb5 {[%clk 0:00:04]}  Kf6 {[%clk 0:00:18]} 48. Kd2 {[%clk 0:00:05]}  Ke6 {[%clk 0:00:11]} 49. Kc3 {[%clk 0:00:05]}  Kd6 {[%clk 0:00:11]} 50. Kb4 {[%clk 0:00:04]}  Ne5 {[%clk 0:00:07]} 51. Rh6+ {[%clk 0:00:05]}  Kc7 {[%clk 0:00:07]} 52. Rh7+ {[%clk 0:00:05]}  Nd7 {[%clk 0:00:06]} 53. Re7 {[%clk 0:00:05]}  e3 {[%clk 0:00:03]} 54. fxe3 {[%clk 0:00:06]}  f3 {[%clk 0:00:03]} 55. Rh7 {[%clk 0:00:03]}  f2 {[%clk 0:00:03]} 56. Rh1 {[%clk 0:00:04]}  Rf6 {[%clk 0:00:03]} 57. Rf1 {[%clk 0:00:03]}  Kb6 {[%clk 0:00:04]} 58. Kc3 {[%clk 0:00:03]}  Kxb5 {[%clk 0:00:04]} 59. Kd2 {[%clk 0:00:04]}  Kc4 {[%clk 0:00:04]} 60. Ke2 {[%clk 0:00:04]}  Ne5 {[%clk 0:00:04]} 61. Rxf2 {[%clk 0:00:04]}  Re6 {[%clk 0:00:04]} 62. Rf4+ {[%clk 0:00:04]}  Kd5 {[%clk 0:00:04]} 63. Rd4+ {[%clk 0:00:04]}  Kc6 {[%clk 0:00:04]} 64. Kd2 {[%clk 0:00:03]}  Nd7 {[%clk 0:00:05]} 65. Rc4+ {[%clk 0:00:03]}  Nc5 {[%clk 0:00:05]} 66. Rh4 {[%clk 0:00:04]}  Kd5 {[%clk 0:00:06]} 67. Ke2 {[%clk 0:00:03]}  Ne4 {[%clk 0:00:05]} 68. Kf3 {[%clk 0:00:03]}  Nd2+ {[%clk 0:00:05]} 69. Ke2 {[%clk 0:00:03]}  Nc4 {[%clk 0:00:06]} 70. Rh5+ {[%clk 0:00:03]}  Kc6 {[%clk 0:00:06]} 71. Rh8 {[%clk 0:00:04]}  Rxe3+ {[%clk 0:00:06]} 72. Kf2 {[%clk 0:00:05]}  Re6 {[%clk 0:00:07]} 73. Rc8+ {[%clk 0:00:05]}  Kd5 {[%clk 0:00:07]} 74. Rf8 {[%clk 0:00:06]}  Ke4 {[%clk 0:00:07]} 75. Rh8 {[%clk 0:00:05]}  Rf6+ {[%clk 0:00:07]} 76. Ke2 {[%clk 0:00:06]}  Re6 {[%clk 0:00:08]} 77. Kf2 {[%clk 0:00:05]}  Ne5 {[%clk 0:00:07]} 78. Rh4+ {[%clk 0:00:05]}  Kd3 {[%clk 0:00:07]} 79. Rh3+ {[%clk 0:00:04]}  Kd2 {[%clk 0:00:06]} 80. Kg3 {[%clk 0:00:04]}  Rg6+ {[%clk 0:00:06]} 81. Kf4 {[%clk 0:00:04]}  Nd3+ {[%clk 0:00:06]} 82. Kf5 {[%clk 0:00:04]}  Rg1 {[%clk 0:00:06]} 83. Rh2+ {[%clk 0:00:04]}  Ke3 {[%clk 0:00:06]} 84. Rh4 {[%clk 0:00:05]}  Rf1+ {[%clk 0:00:06]} 85. Ke6 {[%clk 0:00:05]}  Nf4+ {[%clk 0:00:06]} 86. Kd6 {[%clk 0:00:03]}  Rd1+ {[%clk 0:00:07]} 87. Kc6 {[%clk 0:00:02]}  Ke4 {[%clk 0:00:07]} 88. Rh2 {[%clk 0:00:02]}  Rc1+ {[%clk 0:00:07]} 89. Kd7 {[%clk 0:00:02]}  Rc5 {[%clk 0:00:07]} 90. Ke7 {[%clk 0:00:02]}  Rd5 {[%clk 0:00:07]} 91. Rh4 {[%clk 0:00:02]}  Ke5 {[%clk 0:00:06]} 92. Rh1 {[%clk 0:00:02]}  Ng6+ {[%clk 0:00:06]} 93. Kf7 {[%clk 0:00:03]}  Nf4 {[%clk 0:00:06]} 94. Re1+ {[%clk 0:00:04]}  Kf5 {[%clk 0:00:06]} 95. Rf1 {[%clk 0:00:04]}  Rd7+ {[%clk 0:00:07]} 96. Ke8 {[%clk 0:00:05]}  Rb7 {[%clk 0:00:05]} 97. Kd8 {[%clk 0:00:05]}  Ke5 {[%clk 0:00:04]} 98. Re1+ {[%clk 0:00:05]}  Kd6 {[%clk 0:00:05]} 99. Rd1+ {[%clk 0:00:06]}  Nd5 {[%clk 0:00:05]} 100. Kc8 {[%clk 0:00:05]}  Ra7 {[%clk 0:00:05]} 101. Rd2 {[%clk 0:00:06]}  Ra8+ {[%clk 0:00:05]} 102. Kb7 {[%clk 0:00:06]}  Ra4 {[%clk 0:00:05]} 103. Rb2 {[%clk 0:00:05]}  Kc5 {[%clk 0:00:05]} 104. Rc2+ {[%clk 0:00:05]}  Kd6 {[%clk 0:00:05]} 105. Rb2 {[%clk 0:00:06]}  Rc4 {[%clk 0:00:05]} 106. Rb1 {[%clk 0:00:05]}  Kc5 {[%clk 0:00:05]} 107. Rb2 {[%clk 0:00:05]}  Nc3 {[%clk 0:00:05]} 108. Kb8 {[%clk 0:00:04]}  Nb5 {[%clk 0:00:05]} 109. Rb1 {[%clk 0:00:04]}  Rd4 {[%clk 0:00:05]} 110. Rc1+ {[%clk 0:00:04]}  Kb6 {[%clk 0:00:06]} 111. Kc8 {[%clk 0:00:04]}  Rd6 {[%clk 0:00:05]} 112. Rc2 {[%clk 0:00:03]}  Rd3 {[%clk 0:00:03]} 113. Rc1 {[%clk 0:00:01]}  Rg3 {[%clk 0:00:02]} 114. Kd8 {[%clk 0:00:01]}  Rg7 {[%clk 0:00:02]} 115. Ke8 {[%clk 0:00:02]}  Nd6+ {[%clk 0:00:02]} 116. Kf8 {[%clk 0:00:02]}  Rf7+ {[%clk 0:00:03]} 117. Kg8 {[%clk 0:00:02]}  Re7 {[%clk 0:00:03]} 118. Rd1 {[%clk 0:00:03]}  Kc7 {[%clk 0:00:03]} 119. Rc1+ {[%clk 0:00:03]}  Kd7 {[%clk 0:00:03]} 120. Rf1 {[%clk 0:00:04]}  Ke6 {[%clk 0:00:03]} 121. Re1+ {[%clk 0:00:04]}  Kd7 {[%clk 0:00:04]} 1/2-1/2


[Site "https://www.chess.com"]

[Event "Titled Tuesday Blitz October 31 Late 2023"]
[White "Vifleemskaia, Svetlana"]
[Black "Rakitic2010"]
[WhiteFideId "4129490"]
[WhiteElo "2294"]
[BlackElo "2462"]
[Result "1/2-1/2"]
[Round "8"]
[TimeControl "180+1"]
[Date "2023.10.31"]
[WhiteClock "0:00:20"]
[BlackClock "0:00:15"]
[Board "91"]

1. d4 {[%clk 0:02:56]}  a6 {[%clk 0:02:58]} 2. c4 {[%clk 0:02:56]}  c6 {[%clk 0:02:54]} 3. a4 {[%clk 0:02:54]}  d5 {[%clk 0:02:54]} 4. cxd5 {[%clk 0:02:54]}  cxd5 {[%clk 0:02:54]} 5. Nc3 {[%clk 0:02:55]}  Nf6 {[%clk 0:02:54]} 6. Bf4 {[%clk 0:02:55]}  Nc6 {[%clk 0:02:53]} 7. e3 {[%clk 0:02:55]}  Bf5 {[%clk 0:02:52]} 8. Bd3 {[%clk 0:02:54]}  Bxd3 {[%clk 0:02:51]} 9. Qxd3 {[%clk 0:02:55]}  e6 {[%clk 0:02:51]} 10. Nf3 {[%clk 0:02:54]}  Bd6 {[%clk 0:02:51]} 11. O-O {[%clk 0:02:47]}  O-O {[%clk 0:02:50]} 12. Ne5 {[%clk 0:02:45]}  Nh5 {[%clk 0:02:41]} 13. Nxc6 {[%clk 0:02:43]}  bxc6 {[%clk 0:02:42]} 14. Bxd6 {[%clk 0:02:37]}  Qxd6 {[%clk 0:02:43]} 15. a5 {[%clk 0:02:37]}  Nf6 {[%clk 0:02:38]} 16. Na4 {[%clk 0:02:35]}  Nd7 {[%clk 0:02:37]} 17. Nb6 {[%clk 0:02:32]}  Nxb6 {[%clk 0:02:28]} 18. axb6 {[%clk 0:02:32]}  Rfb8 {[%clk 0:02:23]} 19. Rxa6 {[%clk 0:02:30]}  Rxa6 {[%clk 0:02:23]} 20. Qxa6 {[%clk 0:02:30]}  Qb4 {[%clk 0:02:23]} 21. h3 {[%clk 0:02:11]}  g6 {[%clk 0:02:15]} 22. Rc1 {[%clk 0:02:05]}  Rxb6 {[%clk 0:02:03]} 23. Qa8+ {[%clk 0:02:03]}  Rb8 {[%clk 0:02:01]} 24. Qxc6 {[%clk 0:02:02]}  Qxb2 {[%clk 0:02:00]} 25. Qc2 {[%clk 0:01:57]}  Qb5 {[%clk 0:01:55]} 26. Qc5 {[%clk 0:01:56]}  Qe2 {[%clk 0:01:51]} 27. Qc2 {[%clk 0:01:53]}  Qb5 {[%clk 0:01:49]} 28. Qc5 {[%clk 0:01:51]}  Qb2 {[%clk 0:01:40]} 29. Qc2 {[%clk 0:01:51]}  Kg7 {[%clk 0:01:40]} 30. Kh2 {[%clk 0:01:43]}  Qa3 {[%clk 0:01:36]} 31. Qc7 {[%clk 0:01:33]}  Qb2 {[%clk 0:01:14]} 32. Qe5+ {[%clk 0:01:22]}  Kg8 {[%clk 0:01:12]} 33. Rc6 {[%clk 0:01:14]}  Ra8 {[%clk 0:01:07]} 34. Qf4 {[%clk 0:01:11]}  h5 {[%clk 0:00:59]} 35. Rc7 {[%clk 0:01:09]}  Rf8 {[%clk 0:00:59]} 36. Qf6 {[%clk 0:01:03]}  Qb8 {[%clk 0:00:57]} 37. Qf4 {[%clk 0:00:59]}  f6 {[%clk 0:00:41]} 38. Re7 {[%clk 0:00:46]}  Qxf4+ {[%clk 0:00:31]} 39. exf4 {[%clk 0:00:45]}  e5 {[%clk 0:00:32]} 40. fxe5 {[%clk 0:00:42]}  fxe5 {[%clk 0:00:32]} 41. Rxe5 {[%clk 0:00:41]}  Rxf2 {[%clk 0:00:31]} 42. Kg3 {[%clk 0:00:38]}  Rd2 {[%clk 0:00:27]} 43. Rxd5 {[%clk 0:00:38]}  Kf7 {[%clk 0:00:28]} 44. h4 {[%clk 0:00:38]}  Ke6 {[%clk 0:00:27]} 45. Rg5 {[%clk 0:00:36]}  Rd3+ {[%clk 0:00:24]} 46. Kf2 {[%clk 0:00:29]}  Rxd4 {[%clk 0:00:20]} 47. Rxg6+ {[%clk 0:00:29]}  Kf7 {[%clk 0:00:21]} 48. Rh6 {[%clk 0:00:24]}  Rxh4 {[%clk 0:00:20]} 49. Kg3 {[%clk 0:00:24]}  Rh1 {[%clk 0:00:20]} 50. Ra6 {[%clk 0:00:22]}  Re1 {[%clk 0:00:17]} 51. Ra5 {[%clk 0:00:19]}  Kg6 {[%clk 0:00:16]} 52. Ra6+ {[%clk 0:00:19]}  Kg5 {[%clk 0:00:16]} 53. Ra5+ {[%clk 0:00:19]}  Kg6 {[%clk 0:00:16]} 54. Ra6+ {[%clk 0:00:19]}  Kg7 {[%clk 0:00:17]} 55. Ra7+ {[%clk 0:00:19]}  Kf6 {[%clk 0:00:17]} 56. Ra6+ {[%clk 0:00:19]}  Kf5 {[%clk 0:00:17]} 57. Ra5+ {[%clk 0:00:20]}  Kg6 {[%clk 0:00:15]} 1/2-1/2


[Site "https://www.chess.com"]